bitfinex-derivatives/quotes_SOLF0:USTF0_20250124
["timestamp","ask_amount","ask_price","bid_price","bid_amount"]
[1737738667340,9.08293931,262.62,262.46,3.8095]
[1737738667548,0.67698221,262.61,262.46,9.08293931]
[1737738667736,0.67698221,262.63,262.46,9.08293931]
[1737738667941,0.67718701,262.62,262.46,9.08293931]
[1737738668237,0.67718701,262.61,262.46,9.08293931]
[1737738668438,0.67718701,262.6,262.5,3.8089]
[1737738668644,0.02611727,262.56,262.51,0.02542356]
[1737738669546,3.8086,262.52,262.51,0.02542356]
[1737738670246,0.02611727,262.56,262.51,0.02542356]
[1737738670844,3.8086,262.52,262.51,0.02542356]
[1737738672948,0.02611727,262.56,262.51,0.02542356]
[1737738673544,0.02611727,262.56,262.52,3.8086]
[1737738673748,0.02611727,262.56,262.51,0.02542356]
[1737738674249,0.02611727,262.56,262.52,3.8086]
[1737738674546,0.02611727,262.56,262.51,0.02542356]
[1737738674747,0.02611727,262.56,262.53,3.8085]
[1737738675548,0.02611727,262.56,262.52,3.8086]
[1737738677751,0.02611727,262.56,262.53,3.8084]
[1737738678445,0.02611727,262.56,262.51,0.02542356]
[1737738679153,3.83411727,262.56,262.51,0.02542356]
[1737738681551,0.02611727,262.56,262.51,0.02542356]
[1737738682650,0.02611727,262.56,262.52,3.8086]
[1737738682848,0.02611727,262.56,262.51,0.02542356]
[1737738683253,9.08293931,262.66,262.51,0.02542356]
[1737738683254,0.67706583,262.65,262.51,0.02542356]
[1737738683551,3.807,262.64,262.56,3.808]
[1737738684354,3.807,262.64,262.57,0.02701245]
[1737738684756,3.807,262.63,262.57,0.02701245]
[1737738686057,3.8068,262.65,262.57,3.83491245]
[1737738688257,3.8066,262.67,262.57,0.02701245]
[1737738688458,10.40943931,262.7,262.57,0.02701245]
[1737738688657,0.67759395,262.69,262.57,0.02701245]
[1737738689058,3.8071,262.63,262.57,0.02701245]
[1737738689259,10.40943931,262.7,262.57,0.02701245]
[1737738689460,0.67745616,262.69,262.57,0.02701245]
[1737738689962,3.8068,262.65,262.57,3.83491245]
[1737738690561,10.40943931,262.7,262.57,3.83491245]
[1737738690562,3.8069,262.64,262.57,0.02701245]
[1737738690760,10.40943931,262.7,262.57,0.02701245]
[1737738690956,9.08293931,262.66,262.57,0.02701245]
[1737738691161,3.8077,262.59,262.57,0.02701245]
[1737738691656,9.08293931,262.66,262.57,0.02701245]
[1737738691857,3.8077,262.58,262.57,0.02701245]
[1737738693564,3.8072,262.62,262.57,0.02701245]
[1737738693760,2.84,262.64,262.57,0.02701245]
[1737738694868,9.08293931,262.66,262.57,0.02701245]
[1737738695368,3.807,262.64,262.57,0.02701245]
[1737738695763,2.84,262.69,262.57,0.02701245]
[1737738695970,3.8066,262.67,262.57,0.02701245]
[1737738696668,3.8066,262.67,262.58,3.8077]
[1737738696870,3.8066,262.66,262.58,3.8077]
[1737738698973,10.40943931,262.7,262.57,0.02701245]
[1737738699172,9.08293931,262.66,262.57,0.02701245]
[1737738699368,9.08293931,262.62,262.57,0.02701245]
[1737738699574,3.8086,262.52,262.43,3.8098]
[1737738699872,9.08293931,262.54,262.38,10.30643931]
[1737738700070,9.08293931,262.5,262.34,9.08293931]
[1737738700270,3.8094,262.47,262.36,3.8109]
[1737738700772,0.0273733,262.44,262.39,0.02441578]
[1737738700976,9.08293931,262.54,262.34,9.08293931]
[1737738701272,0.02555173,262.44,262.4,3.8103]
[1737738701469,3.8089,262.5,262.4,3.8103]
[1737738701671,2.84,262.58,262.42,9.08293931]
[1737738702171,2.84,262.58,262.43,3.7928]
[1737738703076,3.8079,262.57,262.48,0.02573332]
[1737738703271,2.84,262.58,262.48,0.02573332]
[1737738704572,2.84,262.58,262.52,3.8085]
[1737738704772,1.2839,262.64,262.48,0.02573332]
[1737738704978,3.8075,262.6,262.49,3.8089]
[1737738705177,1.2839,262.64,262.53,0.02575096]
[1737738705377,0.67676823,262.63,262.53,0.02575096]
[1737738705577,15.77346234,262.64,262.53,0.02575096]
[1737738705977,2.84,262.67,262.56,3.808]
[1737738706272,0.67664706,262.66,262.46,14.48956234]
[1737738706477,3.8069,262.64,262.53,3.8084]
[1737738706677,3.8069,262.64,262.53,3.83644744]
[1737738708077,3.8069,262.64,262.54,3.8083]
[1737738708279,3.8069,262.64,262.53,0.02804744]
[1737738708572,3.8063,262.68,262.53,0.02804744]
[1737738708777,2.84,262.72,262.59,3.8075]
[1737738709077,0.67631196,262.71,262.59,3.8075]
[1737738709276,0.67631196,262.71,262.62,0.02855992]
[1737738709972,3.8065,262.67,262.62,0.02855992]
[1737738710867,3.8063,262.69,262.62,0.02855992]
[1737738711073,2.84,262.72,262.62,0.02855992]
[1737738711272,0.67633306,262.71,262.62,0.02855992]
[1737738711677,3.8063,262.68,262.62,0.02855992]
[1737738714378,1.285,262.73,262.62,0.02855992]
[1737738714572,3.8065,262.67,262.62,0.02855992]
[1737738714975,3.8066,262.66,262.62,0.02855992]
[1737738715582,1.285,262.73,262.62,0.02855992]
[1737738715777,14.48956234,262.86,262.62,0.02855992]
[1737738716086,14.48956234,262.86,262.61,14.48956234]
[1737738716383,14.48956234,262.86,262.68,0.0262324]
[1737738716575,7.8107227,262.88,262.77,3.8049]
[1737738716774,3.8036,262.87,262.69,3.8772]
[1737738716978,0.67512705,262.85,262.8,0.02560486]
[1737738717178,3.8036,262.87,262.8,0.02560486]
[1737738717382,7.8107227,262.88,262.8,0.02560486]
[1737738718081,62.74944879,262.89,262.81,14.48956234]
[1737738718289,62.74944879,262.89,262.82,3.9667]
[1737738718787,3.8026,262.94,262.82,3.9667]
[1737738719192,3.8023,262.96,262.82,7.7709]
[1737738719484,0.67566313,262.95,262.85,0.02693797]
[1737738719683,3.8036,262.87,262.85,0.02693797]
[1737738719887,14.48956234,262.89,262.7,18.45626234]
[1737738720188,0.67549999,262.88,262.7,3.9667]
[1737738720393,0.67549999,262.88,262.65,14.48956234]
[1737738720585,0.67549999,262.88,262.66,3.9667]
[1737738720789,3.8046,262.8,262.66,3.9667]
[1737738721185,0.02437978,262.8,262.74,0.02519737]
[1737738721788,16.95786234,262.94,262.74,0.02519737]
[1737738722095,0.67542267,262.93,262.75,14.48956234]
[1737738722592,16.95786234,262.94,262.75,14.48956234]
[1737738723196,16.95786234,262.94,262.82,0.0281312]
[1737738724096,3.8035,262.88,262.82,0.0281312]
[1737738724791,3.8032,262.9,262.82,0.0281312]
[1737738725091,15.73086234,262.94,262.82,0.0281312]
[1737738725396,0.6755718,262.93,262.82,0.0281312]
[1737738725992,3.804,262.84,262.82,0.0281312]
[1737738726895,3.8038,262.86,262.82,0.0281312]
[1737738727498,14.48956234,262.94,262.82,0.0281312]
[1737738727698,3.8039,262.85,262.82,0.0281312]
[1737738730101,14.48956234,262.94,262.82,0.0281312]
[1737738730296,3.804,262.84,262.82,0.0281312]
[1737738731201,3.8041,262.83,262.82,0.0281312]
[1737738732604,14.48956234,262.89,262.82,0.0281312]
[1737738733904,17.30956234,262.94,262.82,0.0281312]
[1737738734104,0.67591932,262.93,262.82,0.0281312]
[1737738734403,3.8021,262.97,262.86,3.8036]
[1737738734606,3.8021,262.97,262.76,14.48956234]
[1737738734806,3.8021,262.97,262.89,0.02510598]
[1737738735108,3.8023,262.96,262.89,0.02510598]
[1737738735305,14.48956234,262.94,262.89,0.02510598]
[1737738735508,3.803,262.91,262.89,0.02510598]
[1737738738311,14.48956234,262.94,262.71,0.23271]
[1737738738511,14.48956234,262.86,262.71,4.03851]
[1737738739314,14.48956234,262.86,262.71,0.23271]
[1737738739508,0.02715084,262.81,262.76,0.02657355]
[1737738739909,3.8049,262.78,262.76,0.02657355]
[1737738740709,3.8046,262.8,262.76,0.02657355]
[1737738741013,0.02715084,262.81,262.76,0.02657355]
[1737738741513,3.8046,262.8,262.76,0.02657355]
[1737738742007,3.8049,262.78,262.76,0.02657355]
[1737738742211,14.51671318,262.81,262.76,0.02657355]
[1737738742509,3.805,262.77,262.76,0.02657355]
[1737738743110,14.51671318,262.81,262.71,0.23271]
[1737738743317,3.8057,262.72,262.71,0.23271]
[1737738744313,0.02640283,262.74,262.69,0.02453212]
[1737738744516,0.67596537,262.75,262.6,2.5588]
[1737738744714,3.8056,262.73,262.69,0.02917435]
[1737738745015,2.84847369,262.74,262.69,0.02917435]
[1737738745211,14.48956234,262.71,262.69,0.02917435]
[1737738745414,14.48956234,262.71,262.57,3.8078]
[1737738745815,14.48956234,262.71,262.53,2.5253]
[1737738746607,0.02479778,262.65,262.59,0.02672319]
[1737738748618,0.02479778,262.65,262.59,3.83432319]
[1737738749313,0.02479778,262.65,262.59,0.02672319]
[1737738749519,0.02479778,262.65,262.63,3.8069]
[1737738749719,0.02479778,262.65,262.59,0.02672319]
[1737738750220,2.82,262.74,262.67,3.8064]
[1737738750719,14.48956234,262.76,262.53,2.5253]
[1737738751220,2.82,262.79,262.58,14.48956234]
[1737738751418,2.5711,262.8,262.62,0.02867032]
[1737738751615,0.02496051,262.71,262.62,0.02867032]
[1737738751821,0.02496051,262.71,262.68,0.02677326]
[1737738752118,0.02496051,262.71,262.58,14.48956234]
[1737738752321,0.02496051,262.71,262.67,0.02450781]
[1737738753218,0.02496051,262.71,262.7,3.806]
[1737738753514,3.8047,262.79,262.67,0.02450781]
[1737738753724,14.48956234,262.86,262.67,0.02450781]
[1737738753920,14.48956234,262.86,262.63,14.48956234]
[1737738754114,1.3141,262.9,262.68,14.48956234]
[1737738754313,18.29256234,262.91,262.83,3.8041]
[1737738754521,14.48956234,262.91,262.83,3.8041]
[1737738754723,0.02574951,262.9,262.84,0.02409638]
[1737738755123,3.82894951,262.9,262.84,0.02409638]
[1737738755622,0.02574951,262.9,262.84,0.02409638]
[1737738756622,0.02574951,262.9,262.84,3.82809638]
[1737738757522,0.02574951,262.9,262.84,0.02409638]
[1737738758528,0.02574951,262.9,262.88,3.8033]
[1737738758718,0.02574951,262.9,262.84,0.02409638]
[1737738759319,0.02574951,262.9,262.86,3.8036]
[1737738759626,0.02574951,262.9,262.84,0.02409638]
[1737738762218,0.02574951,262.9,262.88,3.8034]
[1737738763521,0.02574951,262.9,262.84,0.02409638]
[1737738765732,0.02574951,262.9,262.85,3.8038]
[1737738765929,0.02574951,262.9,262.84,0.02409638]
[1737738766536,0.02574951,262.9,262.84,3.82809638]
[1737738767337,0.02574951,262.9,262.84,0.02409638]
[1737738767632,0.02574951,262.9,262.84,3.82789638]
[1737738767932,0.02574951,262.9,262.84,0.02409638]
[1737738768134,0.02574951,262.9,262.85,3.8038]
[1737738769930,0.02574951,262.9,262.84,0.02409638]
[1737738770630,0.02574951,262.9,262.86,3.8036]
[1737738771233,0.02574951,262.9,262.84,0.02409638]
[1737738771234,3.82894951,262.9,262.84,0.02409638]
[1737738772335,0.02574951,262.9,262.84,0.02409638]
[1737738773235,0.02574951,262.9,262.88,3.8034]
[1737738774630,0.02574951,262.9,262.84,0.02409638]
[1737738774936,0.02574951,262.9,262.87,3.8035]
[1737738775337,9.03418605,262.97,262.87,3.8035]
[1737738775535,12.83638605,262.97,262.88,3.8033]
[1737738776041,9.03418605,262.97,262.85,2.6141]
[1737738776241,9.03418605,262.97,262.88,3.8033]
[1737738776539,9.03418605,262.97,262.88,0.02421941]
[1737738776837,9.03418605,262.97,262.91,3.8028]
[1737738777239,9.03418605,262.97,262.88,0.02421941]
[1737738777439,3.8023,262.96,262.88,0.02421941]
[1737738777936,9.03418605,262.97,262.88,0.02421941]
[1737738778639,3.8022,262.96,262.88,3.82761941]
[1737738778835,3.8022,262.96,262.88,3.59467941]
[1737738779940,0.02831447,262.95,262.89,0.02547097]
[1737738782242,0.02831447,262.95,262.9,3.803]
[1737738782434,0.02831447,262.95,262.89,0.02547097]
[1737738783649,0.02831447,262.95,262.93,3.8026]
[1737738784642,0.02831447,262.95,262.89,0.02547097]
[1737738784841,9.03418605,263.05,262.89,0.02547097]
[1737738785039,9.03418605,263.05,262.86,9.03418605]
[1737738785847,9.03418605,263.05,262.94,3.8024]
[1737738786244,9.03418605,263.05,262.97,0.02622595]
[1737738786946,3.8013,263.03,262.97,0.02622595]
[1737738788247,9.03418605,263.05,262.97,0.02622595]
[1737738788651,3.8015,263.01,262.97,0.02622595]
[1737738790345,3.8013,263.03,262.97,0.02622595]
[1737738790550,9.03418605,263.05,262.97,0.02622595]
[1737738791049,3.8015,263.01,262.97,0.02622595]
[1737738791948,3.8018,262.99,262.97,0.02622595]
[1737738792348,9.03418605,263.01,262.97,0.02622595]
[1737738792549,3.8019,262.98,262.97,0.02622595]
[1737738792946,9.03418605,263.01,262.86,0.23479]
[1737738793246,9.03418605,262.95,262.86,0.23479]
[1737738793445,2.82,262.94,262.86,0.23479]
[1737738793842,3.803,262.91,262.86,0.23479]
[1737738794243,3.83047921,262.91,262.86,0.26338432]
[1737738794544,0.02747921,262.91,262.86,0.26338432]
[1737738796351,3.8032,262.9,262.86,0.26338432]
[1737738796545,0.02747921,262.91,262.86,0.26338432]
[1737738797245,3.83047921,262.91,262.86,0.26338432]
[1737738798651,3.8031,262.9,262.86,0.26338432]
[1737738798849,0.02747921,262.91,262.86,0.26338432]
[1737738799255,3.8035,262.87,262.86,0.26338432]
[1737738803957,9.03418605,262.88,262.86,0.26338432]
[1737738805061,12.83758605,262.88,262.86,0.26338432]
[1737738805563,9.03418605,262.88,262.86,0.26338432]
[1737738807861,12.83758605,262.88,262.86,0.26338432]
[1737738808064,0.02747921,262.91,262.86,0.26338432]
[1737738808662,9.03418605,262.88,262.86,0.26338432]
[1737738809264,3.8035,262.87,262.86,0.26338432]
[1737738810762,9.03418605,262.88,262.7,1.341]
[1737738811065,9.03418605,262.75,262.62,1.2427]
[1737738811267,9.03418605,262.71,262.62,5.0498]
[1737738811467,12.84008605,262.71,262.62,1.2427]
[1737738811870,0.02580492,262.69,262.64,0.02794985]
[1737738812465,3.8067,262.66,262.64,0.02794985]
[1737738812673,9.03418605,262.67,262.64,0.02794985]
[1737738812864,2.82,262.68,262.64,0.02794985]
[1737738814774,6.6264,262.68,262.64,0.02794985]
[1737738815577,2.82,262.68,262.64,0.02794985]
[1737738816676,2.82,262.68,262.53,1.08091985]
[1737738817772,2.82,262.68,262.59,3.8075]
[1737738817979,0.02813496,262.63,262.59,3.8075]
[1737738818879,0.02813496,262.63,262.62,3.8072]
[1737738821480,0.02813496,262.63,262.6,3.8073]
[1737738822278,0.02813496,262.63,262.61,3.8073]
[1737738822479,0.02813496,262.63,262.59,2.5473]
[1737738823279,0.02813496,262.63,262.62,3.8072]
[1737738833090,0.02813496,262.63,262.6,3.8074]
[1737738833384,0.02813496,262.63,262.58,0.02797374]
[1737738833586,9.03418605,262.59,262.58,0.02797374]
[1737738833781,9.03418605,262.59,262.45,2.6209]
[1737738833987,9.03418605,262.54,262.41,1.2654]
[1737738834191,3.8092,262.48,262.36,1.3149]
[1737738834382,9.03418605,262.46,262.36,1.3149]
[1737738834891,9.03418605,262.46,262.38,3.8106]
[1737738835092,0.02879647,262.44,262.38,0.02911047]
[1737738835790,0.02879647,262.44,262.43,3.8099]
[1737738835990,9.03418605,262.54,262.39,1.2407]
[1737738836494,9.03418605,262.58,262.43,9.03418605]
[1737738837193,0.0273214,262.53,262.48,0.02722559]
[1737738838092,0.0273214,262.53,262.5,3.8089]
[1737738838292,0.0273214,262.53,262.48,0.02722559]
[1737738839593,3.8087,262.52,262.48,0.02722559]
[1737738839985,9.06150745,262.53,262.48,0.02722559]
[1737738840391,9.03418605,262.49,262.48,0.02722559]
[1737738840588,9.03418605,262.49,262.39,1.2407]
[1737738840589,9.03418605,262.49,262.36,1.3149]
[1737738840788,9.03418605,262.45,262.36,1.3149]
[1737738841590,9.03418605,262.45,262.38,3.8106]
[1737738841796,0.02556412,262.43,262.38,0.02595608]
[1737738841996,9.03418605,262.49,262.36,2.6248]
[1737738842196,0.02765464,262.43,262.39,3.8104]
[1737738842397,0.02765464,262.43,262.38,0.02822958]
[1737738843497,9.03418605,262.53,262.38,0.02822958]
[1737738843796,9.03418605,262.53,262.36,2.6248]
[1737738843797,9.03418605,262.57,262.39,9.03418605]
[1737738843996,9.03418605,262.57,262.5,3.8088]
[1737738844195,9.03418605,262.61,262.43,9.03418605]
[1737738844698,0.02840843,262.55,262.49,0.02469556]
[1737738845296,0.02840843,262.55,262.53,3.8084]
[1737738845493,1.256,262.71,262.49,0.02469556]
[1737738845494,9.03418605,262.69,262.51,9.03418605]
[1737738845896,3.8063,262.68,262.51,9.03418605]
[1737738846697,0.02843209,262.62,262.57,0.02672322]
[1737738847798,0.02843209,262.62,262.6,3.8074]
[1737738848191,3.8059,262.71,262.57,0.02672322]
[1737738848389,9.03418605,262.73,262.57,0.02672322]
[1737738848589,9.03418605,262.73,262.55,9.03418605]
[1737738849295,0.02820576,262.67,262.61,0.02405222]
[1737738850896,0.02820576,262.67,262.62,3.807]
[1737738852600,0.02820576,262.67,262.61,0.02405222]
[1737738853703,0.02820576,262.67,262.65,3.8067]
[1737738854104,0.02820576,262.67,262.62,2.633]
[1737738854500,0.02820576,262.67,262.63,3.807]
[1737738855806,0.02820576,262.67,262.61,3.83125222]
[1737738856303,0.02820576,262.67,262.62,3.8071]
[1737738858107,0.02820576,262.67,262.61,0.02405222]
[1737738858309,3.83480576,262.67,262.61,0.02405222]
[1737738858809,3.8069,262.64,262.61,0.02405222]
[1737738859012,0.02820576,262.67,262.61,0.02405222]
[1737738859511,3.8067,262.65,262.61,0.02405222]
[1737738860005,0.02820576,262.67,262.61,0.02405222]
[1737738860006,3.83470576,262.67,262.61,0.02405222]
[1737738860709,0.02820576,262.67,262.61,0.02405222]
[1737738862107,0.02820576,262.67,262.62,3.807]
[1737738862412,0.02820576,262.67,262.61,0.02405222]
[1737738862712,0.02820576,262.67,262.65,3.8066]
[1737738864616,0.02820576,262.67,262.61,0.02405222]
[1737738864617,0.02820576,262.67,262.66,3.8066]
[1737738867317,0.02820576,262.67,262.61,0.02405222]
[1737738867917,3.83470576,262.67,262.63,3.8069]
[1737738868120,3.83470576,262.67,262.61,0.02405222]
[1737738868322,0.02820576,262.67,262.61,0.02405222]
[1737738868523,0.02820576,262.67,262.61,3.83125222]
[1737738868725,0.02820576,262.67,262.61,0.02405222]
[1737738871622,0.02820576,262.67,262.64,3.8068]
[1737738872926,0.02820576,262.67,262.66,3.8066]
[1737738876030,0.02820576,262.67,262.61,0.02405222]
[1737738876730,0.02820576,262.67,262.66,3.8066]
[1737738884039,3.8049,262.78,262.63,9.03418605]
[1737738884233,9.03418605,262.81,262.64,1.2129]
[1737738884428,9.03418605,262.81,262.67,9.03418605]
[1737738884630,9.03418605,262.86,262.68,1.2547]
[1737738884831,0.67673445,262.85,262.68,1.2547]
[1737738885135,9.03418605,262.82,262.74,0.02800181]
[1737738885939,3.8045,262.81,262.74,0.02800181]
[1737738886236,9.03418605,262.77,262.74,0.02800181]
[1737738886436,3.8053,262.75,262.74,0.02800181]
[1737738888532,3.8058,262.72,262.64,1.2129]
[1737738888731,9.03418605,262.73,262.64,1.2129]
[1737738889135,12.83988605,262.73,262.64,1.2129]
[1737738889338,9.03418605,262.73,262.64,1.2129]
[1737738889736,0.02744753,262.71,262.66,0.02877891]
[1737738891645,3.83334753,262.71,262.66,0.02877891]
[1737738892243,0.02744753,262.71,262.66,0.02877891]
[1737738893141,3.8062,262.69,262.66,0.02877891]
[1737738894246,3.83334753,262.71,262.66,0.02877891]
[1737738894639,0.02744753,262.71,262.66,0.02877891]
[1737738895335,3.8063,262.69,262.66,0.02877891]
[1737738895841,3.8064,262.67,262.66,0.02877891]
[1737738897741,9.03418605,262.69,262.66,0.02877891]
[1737738897948,3.806,262.7,262.66,0.02877891]
[1737738900351,0.02744753,262.71,262.66,0.02877891]
[1737738902552,0.02744753,262.71,262.68,3.8063]
[1737738903051,0.02744753,262.71,262.66,0.02877891]
[1737738903761,12.84058605,262.67,262.66,0.02877891]
[1737738904154,3.8062,262.69,262.66,0.02877891]
[1737738904850,3.8063,262.68,262.66,0.02877891]
[1737738905251,9.06163358,262.71,262.66,0.02877891]
[1737738905447,3.806,262.7,262.66,0.02877891]
[1737738906157,3.8064,262.67,262.66,0.02877891]
[1737738906454,9.03418605,262.67,262.49,1.2473]
[1737738906953,3.8067,262.66,262.56,3.808]
[1737738907655,3.8067,262.66,262.58,0.02462866]
[1737738907656,0.02654003,262.64,262.58,0.02462866]
[1737738909052,9.03418605,262.63,262.58,0.02462866]
[1737738909353,9.03418605,262.59,262.58,0.02462866]
[1737738909553,9.03418605,262.63,262.58,0.02462866]
[1737738909954,9.03418605,262.63,262.58,3.83222866]
[1737738910548,0.02654003,262.64,262.58,0.02462866]
[1737738911256,0.02654003,262.64,262.6,3.8074]
[1737738911660,0.02654003,262.64,262.63,3.807]
[1737738912551,9.03418605,262.75,262.7,3.806]
[1737738913060,9.03418605,262.75,262.6,1.3405]
[1737738913257,9.03418605,262.75,262.68,3.8062]
[1737738913457,12.83898605,262.79,262.61,9.03418605]
[1737738913661,0.02589094,262.74,262.69,0.02634099]
[1737738913863,0.02589094,262.74,262.72,3.8057]
[1737738915354,9.03418605,262.79,262.74,3.8054]
[1737738915557,9.03418605,262.83,262.74,3.8054]
[1737738915753,9.03418605,262.78,262.6,10.37468605]
[1737738916261,9.03418605,262.74,262.66,3.8066]
[1737738916662,9.03418605,262.74,262.66,0.02921293]
[1737738917159,9.03418605,262.74,262.69,3.8061]
[1737738917764,9.03418605,262.78,262.66,0.02921293]
[1737738918056,9.03418605,262.78,262.6,10.37468605]
[1737738918262,9.03418605,262.78,262.71,3.8059]
[1737738918454,9.03418605,262.78,262.69,0.02583146]
[1737738918654,9.03418605,262.82,262.69,0.02583146]
[1737738918861,9.03418605,262.82,262.64,9.03418605]
[1737738919053,9.03418605,262.82,262.73,0.02531636]
[1737738919456,3.8048,262.79,262.73,0.02531636]
[1737738919654,9.03418605,262.82,262.73,0.02531636]
[1737738919859,9.03418605,262.78,262.73,0.02531636]
[1737738920059,9.03418605,262.86,262.6,1.3405]
[1737738920060,9.03418605,262.74,262.6,1.3405]
[1737738920369,9.03418605,262.7,262.53,9.03418605]
[1737738921160,0.0268672,262.64,262.59,0.02770408]
[1737738921365,5.1487,262.77,262.59,0.02770408]
[1737738921659,9.03418605,262.78,262.57,9.03418605]
[1737738921862,3.8051,262.77,262.71,3.8058]
[1737738922058,9.03418605,262.78,262.61,9.03418605]
[1737738922258,2.5766,262.84,262.62,2.5783]
[1737738922259,9.03418605,262.82,262.62,2.5783]
[1737738922456,3.8046,262.8,262.73,3.8055]
[1737738922862,9.03418605,262.82,262.69,0.02881682]
[1737738923065,3.8044,262.81,262.75,3.8053]
[1737738923456,3.8044,262.81,262.75,3.83382105]
[1737738923657,9.03418605,262.82,262.75,3.83382105]
[1737738925472,9.03418605,262.86,262.75,0.02852105]
[1737738926473,9.03418605,262.9,262.75,0.02852105]
[1737738926669,9.03418605,262.94,262.79,9.03418605]
[1737738927166,9.03418605,262.94,262.84,0.02839312]
[1737738928271,1.3157,262.98,262.84,0.02839312]
[1737738928272,9.03418605,262.9,262.84,0.02839312]
[1737738928570,3.8033,262.89,262.84,0.02839312]
[1737738928763,9.03418605,262.9,262.84,0.02839312]
[1737738929165,9.03418605,262.94,262.84,0.02839312]
[1737738929871,9.03418605,262.9,262.84,0.02839312]
[1737738930071,3.8033,262.89,262.84,0.02839312]
[1737738930270,9.03418605,262.9,262.84,0.02839312]
[1737738931668,12.83688605,262.94,262.86,3.8037]
[1737738932074,9.03418605,262.94,262.87,0.02665859]
[1737738932275,9.03418605,262.9,262.87,0.02665859]
[1737738933474,9.03418605,262.9,262.71,9.03418605]
[1737738933674,9.03418605,262.9,262.72,1.3286]
[1737738934675,0.02802967,262.84,262.78,0.02401816]
[1737738935069,3.803,262.91,262.75,9.03418605]
[1737738935376,6.476e-05,262.84,262.79,9.03418605]
[1737738935580,9.03418605,263.03,262.83,9.03418605]
[1737738935779,9.03418605,263.03,262.84,1.2748]
[1737738936077,3.8017,263.0,262.84,1.2748]
[1737738936676,9.03418605,263.03,262.84,1.2748]
[1737738936876,3.8015,263.01,262.94,3.8025]
[1737738937273,3.8015,263.01,262.95,0.02446984]
[1737738937478,9.03418605,263.07,262.95,0.02446984]
[1737738937677,9.03418605,263.07,262.87,9.03418605]
[1737738937879,3.801,263.05,262.98,0.0245404]
[1737738938279,9.03418605,263.07,262.98,0.0245404]
[1737738938774,9.03418605,263.03,262.98,0.0245404]
[1737738939979,12.83548605,263.03,262.98,0.0245404]
[1737738941690,9.03418605,263.03,262.98,0.0245404]
[1737738941888,3.8014,263.02,262.98,0.0245404]
[1737738942985,9.03418605,263.03,262.98,0.0245404]
[1737738943288,9.03418605,263.03,262.98,3.8264404]
[1737738943779,9.03418605,263.03,262.98,0.0245404]
[1737738944786,9.78428605,263.12,262.84,1.2748]
[1737738944787,9.03418605,262.99,262.84,1.2748]
[1737738945288,9.03418605,262.99,262.91,3.8029]
[1737738945586,9.03418605,262.99,262.84,1.2748]
[1737738945785,3.8027,262.93,262.84,1.2748]
[1737738945981,0.02852945,262.94,262.89,0.02693026]
[1737738947989,9.03418605,262.91,262.89,0.02693026]
[1737738948193,9.03418605,262.91,262.75,9.03418605]
[1737738948487,9.03418605,262.87,262.74,2.5939]
[1737738949292,0.02727361,262.83,262.78,0.02634376]
[1737738950595,3.83157361,262.83,262.78,0.02634376]
[1737738950887,0.02727361,262.83,262.78,0.02634376]
[1737738953091,0.02727361,262.83,262.8,3.8045]
[1737738953293,0.02727361,262.83,262.78,0.02634376]
[1737738953898,0.02727361,262.83,262.81,3.8044]
[1737738955099,0.02727361,262.83,262.78,0.02634376]
[1737738955399,0.02727361,262.83,262.82,3.8043]
[1737738957399,3.8034,262.89,262.84,3.8039]
[1737738957799,3.8034,262.89,262.77,3.8114]
[1737738958200,3.8036,262.87,262.77,3.8114]
[1737738958394,9.0602008,262.86,262.8,0.02477529]
[1737738958701,3.805,262.77,262.69,1.234]
[1737738958895,9.03418605,262.82,262.69,1.234]
[1737738959201,9.03418605,262.82,262.7,0.02923692]
[1737738959398,0.02479947,262.78,262.72,3.8057]
[1737738959994,3.82969947,262.78,262.73,3.8056]
[1737738960495,0.02479947,262.78,262.7,0.02923692]
[1737738960796,0.02479947,262.78,262.77,3.805]
[1737738962399,3.8033,262.89,262.72,9.03418605]
[1737738962603,9.03418605,262.98,262.8,9.03418605]
[1737738962803,9.03418605,262.98,262.81,2.5756]
[1737738963298,9.03418605,262.98,262.95,3.8023]
[1737738964303,9.03418605,262.98,262.94,0.0279495]
[1737738966307,9.03418605,263.02,262.94,0.0279495]
[1737738967002,9.03418605,263.02,262.96,3.8022]
[1737738967505,9.03418605,263.08,262.94,0.0279495]
[1737738967705,9.03418605,263.08,262.9,1.2112]
[1737738967998,9.03418605,263.08,263.04,3.801]
[1737738968796,9.03418605,263.08,263.03,0.02926063]
[1737738969002,9.03418605,263.12,263.03,0.02926063]
[1737738969504,12.83408605,263.12,263.03,0.02926063]
[1737738969701,9.03418605,263.12,263.03,0.02926063]
[1737738969905,9.03418605,263.08,263.03,0.02926063]
[1737738970207,9.03418605,263.08,262.94,2.5043]